bitfinex/quotes_SOLUSD_20240809
["timestamp","ask_amount","ask_price","bid_price","bid_amount"]
[1723231568465,0.8237984,154.29,154.26,19.4]
[1723231568650,0.8237984,154.29,154.27,20.69620179]
[1723231568848,0.8237984,154.29,154.28,1.29614876]
[1723231569248,0.8237984,154.29,154.27,19.4]
[1723231569446,0.8237984,154.29,154.25,9.5965235]
[1723231569668,0.8237984,154.29,154.24,9.5965235]
[1723231569857,19.4,154.27,154.23,9.5965235]
[1723231570058,19.4,154.27,154.22,9.5965235]
[1723231570272,0.8237984,154.29,154.22,9.5965235]
[1723231570273,19.4,154.26,154.22,9.5965235]
[1723231570570,19.4,154.26,154.21,9.5965235]
[1723231571369,19.4,154.25,154.21,9.5965235]
[1723231571566,19.4,154.25,154.21,9.588509]
[1723231571764,19.4,154.25,154.22,9.588509]
[1723231572774,19.4,154.23,154.22,9.588509]
[1723231572955,19.4,154.23,154.21,9.588509]
[1723231573274,19.4,154.23,154.2,9.588509]
[1723231574548,19.4,154.22,154.2,9.588509]
[1723231574755,19.4,154.22,154.19,9.588509]
[1723231575264,19.4,154.23,154.19,9.588509]
[1723231576265,19.52549,154.22,154.19,9.588509]
[1723231576475,19.4,154.23,154.19,9.588509]
[1723231576655,19.4,154.23,154.19,9.59846008]
[1723231577256,19.4,154.23,154.15,19.4]
[1723231577573,19.4,154.23,154.19,9.59757336]
[1723231577875,19.4,154.22,154.19,9.59757336]
[1723231578458,19.4,154.22,154.15,19.4]
[1723231578657,19.4,154.22,154.19,9.59773198]
[1723231579154,19.4,154.23,154.19,9.59773198]
[1723231580078,0.12549,154.22,154.19,9.59773198]
[1723231580285,19.4,154.23,154.19,9.59773198]
[1723231580448,19.4,154.23,154.2,9.59773198]
[1723231580764,19.4,154.23,154.19,9.59773198]
[1723231581360,0.12549,154.22,154.19,9.59773198]
[1723231581566,19.4,154.21,154.19,9.59773198]
[1723231583077,19.65098,154.22,154.19,9.59773198]
[1723231583275,6.76354482,154.26,154.2,19.4]
[1723231583488,25.6217,154.28,154.21,9.59773198]
[1723231583691,6.2217,154.28,154.22,9.59773198]
[1723231583977,0.8237984,154.29,154.24,19.4]
[1723231584184,0.8237984,154.29,154.24,28.99773198]
[1723231584483,0.8237984,154.29,154.25,9.59773198]
[1723231584781,0.8237984,154.29,154.24,9.57969551]
[1723231585669,0.8237984,154.29,154.23,19.4]
[1723231585896,20.2237984,154.29,154.24,9.5829866]
[1723231586066,0.37647,154.28,154.24,9.5829866]
[1723231586279,0.37647,154.28,154.23,9.5829866]
[1723231586478,6.85817,154.28,154.23,9.5829866]
[1723231586872,0.37647,154.28,154.23,9.5829866]
[1723231587393,45.37647,154.28,154.23,9.5829866]
[1723231588073,71.25827,154.28,154.22,9.5829866]
[1723231588985,25.8825,154.26,154.22,9.5829866]
[1723231589289,0.25098,154.25,154.21,9.5829866]
[1723231589786,19.4,154.27,154.21,9.5829866]
[1723231590001,0.12549,154.26,154.21,9.5829866]
[1723231590566,26.13348,154.26,154.21,9.5829866]
[1723231590768,0.12549,154.25,154.21,9.5829866]
[1723231590980,0.12549,154.25,154.2,9.5829866]
[1723231591288,0.12549,154.25,154.19,28.9829866]
[1723231591491,0.12549,154.26,154.2,28.9829866]
[1723231591702,0.12549,154.26,154.21,9.5829866]
[1723231592392,0.12549,154.26,154.2,19.4]
[1723231592601,0.12549,154.26,154.21,9.58631578]
[1723231595060,0.12549,154.24,154.21,9.58631578]
[1723231595265,19.4,154.24,154.2,9.58631578]
[1723231595461,19.52549,154.23,154.2,9.58631578]
[1723231595678,19.4,154.22,154.19,9.58631578]
[1723231595869,19.4,154.22,154.19,9.5872288]
[1723231596490,0.12549,154.23,154.18,9.58853838]
[1723231596491,19.52549,154.21,154.18,9.58853838]
[1723231596716,19.4,154.19,154.18,9.58853838]
[1723231597068,19.52549,154.21,154.18,9.58853838]
[1723231597281,6.60979,154.22,154.17,9.58853838]
[1723231597282,19.52549,154.22,154.17,9.58853838]
[1723231597594,0.12549,154.21,154.17,9.58853838]
[1723231597771,0.25098,154.21,154.17,9.58853838]
[1723231600592,22.7618,154.24,154.18,9.58853838]
[1723231600593,19.4,154.23,154.18,9.58853838]
[1723231601065,35.80379,154.24,154.18,9.58853838]
[1723231601269,19.4,154.27,154.2,19.4]
[1723231601568,19.4,154.25,154.19,9.58853838]
[1723231602495,0.25098,154.26,154.19,28.98853838]
[1723231602706,0.25098,154.26,154.2,28.98853838]
[1723231602997,42.1408,154.28,154.21,28.98853838]
[1723231603897,42.1408,154.28,154.21,9.58853838]
[1723231604068,19.4,154.26,154.21,9.58853838]
[1723231604397,25.8826,154.26,154.21,9.58853838]
[1723231604595,0.12549,154.25,154.21,9.58853838]
[1723231605785,19.52549,154.25,154.21,9.58853838]
[1723231606476,19.4,154.24,154.2,9.58895319]
[1723231606681,19.4,154.24,154.19,9.58895319]
[1723231606880,19.4,154.24,154.19,9.59118676]
[1723231607401,19.4,154.24,154.19,9.59129429]
[1723231608427,19.65098,154.25,154.19,9.59129429]
[1723231608588,0.25098,154.25,154.19,9.59129429]
[1723231608783,45.25098,154.25,154.19,9.59129429]
[1723231608986,0.12549,154.27,154.2,28.99129429]
[1723231608987,19.4,154.27,154.2,28.99129429]
[1723231609205,22.741,154.28,154.21,9.59129429]
[1723231609410,42.141,154.28,154.21,9.59129429]
[1723231609982,42.141,154.28,154.21,9.59258652]
[1723231610185,19.4,154.27,154.21,9.59258652]
[1723231610679,0.12549,154.26,154.21,9.59258652]
[1723231611086,25.883,154.25,154.21,9.59258652]
[1723231612508,19.4,154.25,154.21,9.59258652]
[1723231613513,25.8831,154.25,154.21,9.59030305]
[1723231614214,25.8831,154.25,154.17,35.1791]
[1723231614215,25.8839,154.23,154.2,9.59030305]
[1723231614512,0.12549,154.22,154.18,9.59030305]
[1723231614805,45.25098,154.23,154.19,9.59030305]
[1723231614991,64.65098,154.23,154.18,9.59030305]
[1723231615601,0.12549,154.22,154.18,9.59030305]
[1723231616707,19.4,154.21,154.18,9.5917738]
[1723231617078,19.4,154.21,154.18,9.59273886]
[1723231617498,19.4,154.21,154.14,25.5479]
[1723231617726,19.4,154.21,154.17,9.59363977]
[1723231618302,19.52549,154.22,154.18,9.59363977]
[1723231618593,0.25098,154.21,154.18,9.59363977]
[1723231618920,0.25098,154.21,154.17,9.59109122]
[1723231620618,0.25098,154.21,154.15,19.4]
[1723231620813,0.25098,154.21,154.18,9.59184257]
[1723231622583,0.25098,154.21,154.18,9.59225105]
[1723231622780,19.65098,154.21,154.18,9.59225105]
[1723231622983,6.76317006,154.26,154.19,19.4]
[1723231623211,19.4,154.27,154.2,19.4]
[1723231623395,42.1407,154.28,154.2,19.4]
[1723231623806,25.8822,154.27,154.2,19.4]
[1723231624301,45.50196,154.26,154.2,19.4]
[1723231624898,45.50196,154.26,154.2,28.98744472]
[1723231625394,51.98466,154.26,154.2,28.98744472]
[1723231626099,64.90196,154.26,154.2,28.98744472]
[1723231626316,35.659,154.28,154.21,19.4]
[1723231626508,25.8825,154.27,154.2,19.4]
[1723231626700,25.8825,154.27,154.2,28.98707544]
[1723231626889,1.95156581,154.29,154.26,19.4]
[1723231627088,0.8237984,154.29,154.26,19.4]
[1723231628920,0.8237984,154.29,154.21,22.1182]
[1723231629124,0.8237984,154.29,154.25,19.4]
[1723231629816,0.8237984,154.29,154.26,19.4]
[1723231630023,0.8237984,154.29,154.28,19.4]
[1723231630230,0.8237984,154.29,154.27,9.57724943]
[1723231630586,0.8237984,154.29,154.21,22.1182]
[1723231630587,0.8237984,154.29,154.26,9.57724943]
[1723231630806,0.8237984,154.29,154.25,9.57724943]
[1723231631715,0.8237984,154.29,154.25,9.57577921]
[1723231632104,0.8237984,154.29,154.24,19.4]
[1723231632292,7.3051984,154.29,154.24,9.57568446]
[1723231632496,6.60719,154.28,154.24,9.57824665]
[1723231632825,0.12549,154.28,154.23,9.57824665]
[1723231633503,0.12549,154.28,154.23,9.57477802]
[1723231635029,19.4,154.26,154.22,9.57477802]
[1723231635249,19.4,154.26,154.19,19.4]
[1723231635434,19.4,154.26,154.21,9.56937897]
[1723231635614,26.00769,154.27,154.21,9.56937897]
[1723231635933,26.00769,154.27,154.2,9.56937897]
[1723231635934,0.12549,154.26,154.2,9.56937897]
[1723231636718,0.12549,154.26,154.21,9.56937897]
[1723231636929,19.4,154.25,154.22,9.56937897]
[1723231637237,19.4,154.23,154.2,9.56937897]
[1723231637433,19.4,154.23,154.19,9.56937897]
[1723231637645,19.52549,154.24,154.19,9.56937897]
[1723231637936,26.00919,154.24,154.19,9.56937897]
[1723231638120,19.52549,154.24,154.19,9.56937897]
[1723231638518,19.52549,154.24,154.17,34.7527]
[1723231638744,26.00909,154.24,154.19,9.58313654]
[1723231639403,0.25098,154.23,154.19,9.58313654]
[1723231639605,19.4,154.2,154.19,9.58313654]
[1723231639846,0.12549,154.19,154.15,9.58313654]
[1723231640017,45.37647,154.19,154.13,15.554]
[1723231640720,0.37647,154.19,154.13,15.554]
[1723231641234,0.37647,154.19,154.1,37.89313654]
[1723231641638,28.68647,154.19,154.1,9.58313654]
[1723231641813,6.4866,154.17,154.09,22.252]
[1723231642012,0.12549,154.16,154.09,22.252]
[1723231642430,45.0,154.18,154.09,22.252]
[1723231642731,0.25098,154.19,154.1,28.31]
[1723231642938,0.12549,154.19,154.1,28.31]
[1723231643246,45.12549,154.19,154.1,28.31]
[1723231643417,0.12549,154.18,154.1,28.31]
[1723231643753,0.25098,154.18,154.1,28.31]
[1723231644646,6.73698,154.18,154.1,28.31]
[1723231644809,0.12549,154.16,154.09,22.252]
[1723231645010,0.25098,154.16,154.09,22.252]
[1723231646618,0.25098,154.16,154.09,16.0997]
[1723231647438,0.12549,154.15,154.05,31.49447145]
[1723231647640,6.4883,154.13,154.03,9.60307145]
[1723231647827,45.25098,154.12,154.02,37.91307145]
[1723231648030,73.68647,154.12,154.02,28.31]
[1723231648330,0.12549,154.11,154.02,28.31]
[1723231648543,0.12549,154.1,154.02,28.31]
[1723231648831,0.25098,154.1,154.02,28.31]
[1723231649544,0.12549,154.09,154.01,21.8721]
[1723231649837,45.25098,154.09,154.01,21.8721]
[1723231652017,45.25098,154.09,154.02,28.31]
[1723231652840,15.20319,154.1,154.02,28.31]
[1723231653518,1.12535877,154.13,154.04,28.31]
[1723231653519,7.61365877,154.13,154.04,28.31]
[1723231654219,1.12535877,154.13,154.04,28.31]
[1723231655461,0.12549,154.12,154.04,28.31]
[1723231655620,0.25098,154.12,154.04,28.31]
[1723231656925,6.73948,154.12,154.04,28.31]
[1723231657138,0.12549,154.11,154.02,28.31]
[1723231657344,45.25098,154.11,154.02,28.31]
[1723231657641,0.12549,154.1,154.02,28.31]
[1723231658240,0.25098,154.1,154.01,15.8666]
[1723231658446,0.12549,154.09,154.01,15.8666]
[1723231658747,6.86617,154.09,154.0,28.31]
[1723231659048,45.12549,154.08,154.0,28.31]
[1723231659244,0.12549,154.07,154.0,28.31]
[1723231660523,0.25098,154.07,154.0,28.31]
[1723231660720,16.65948,154.07,153.98,28.31]
[1723231660939,0.25098,154.06,153.98,28.31]
[1723231661144,6.74188,154.06,153.98,28.31]
[1723231661332,0.12549,154.05,153.98,28.31]
[1723231662947,0.12549,154.06,154.0,28.31]
[1723231663437,0.25098,154.06,154.0,28.31]
[1723231663742,0.12549,154.06,153.98,28.31]
[1723231664051,6.86747,154.06,153.98,28.31]
[1723231664356,0.37647,154.06,153.98,28.31]
[1723231664522,0.25098,154.06,154.0,28.31]
[1723231664721,0.12549,154.06,154.0,28.31]
[1723231664925,0.25098,154.06,153.98,28.31]
[1723231665224,6.86747,154.06,153.98,28.31]
[1723231666559,0.37647,154.06,153.98,28.31]
[1723231666923,45.37647,154.06,153.98,28.31]
[1723231667342,51.86757,154.06,153.98,28.31]
[1723231667748,6.4914,154.05,153.98,28.31]
[1723231667952,0.12549,154.04,153.98,28.31]
[1723231669740,0.37647,154.05,153.98,28.31]
[1723231670764,16.4085,154.07,154.0,28.31]
[1723231671963,22.8991,154.07,154.0,28.31]
[1723231672352,0.12549,154.06,154.0,28.31]
[1723231672755,6.61659,154.06,154.0,28.31]
[1723231672958,0.12549,154.05,153.98,28.31]
[1723231674553,16.4085,154.07,154.0,28.31]
[1723231676379,22.8991,154.07,154.0,28.31]
[1723231678361,16.4085,154.07,154.0,28.31]
[1723231680255,22.899,154.07,154.0,28.31]
[1723231681781,6.491,154.06,153.98,28.31]
[1723231682159,0.12549,154.06,153.98,28.31]
[1723231682366,6.86747,154.06,153.98,28.31]
[1723231683366,0.37647,154.06,153.98,28.31]
[1723231683889,0.12549,154.06,153.98,28.31]
[1723231684061,16.4085,154.07,154.02,28.31]
[1723231684263,22.6431,154.11,154.03,1.29823366]
[1723231684786,29.132,154.11,154.02,28.31]
[1723231684979,29.132,154.11,154.03,1.29814136]
[1723231685781,0.12549,154.1,154.03,1.29814136]
[1723231685993,22.6431,154.11,154.04,28.31]
[1723231686185,22.6431,154.11,154.0,28.31]
[1723231686186,22.6431,154.11,154.06,28.31]
[1723231686387,28.31,154.16,154.08,28.31]
[1723231686388,6.0815,154.15,154.08,28.31]
[1723231686588,22.2959,154.15,154.08,29.60781498]
[1723231686762,16.2144,154.15,154.1,28.31]
[1723231687481,16.2144,154.15,154.08,28.31]
[1723231687783,6.489,154.11,154.04,28.31]
[1723231687991,6.4895,154.1,154.02,28.31]
[1723231688369,6.4898,154.09,154.02,28.31]
[1723231688573,6.4893,154.1,154.02,28.31]
[1723231688988,6.61439,154.11,154.02,28.31]
[1723231689161,6.4893,154.1,154.02,28.31]
[1723231689364,0.12549,154.09,154.02,28.31]
[1723231691789,45.25098,154.1,154.02,28.31]
[1723231692272,51.74038,154.1,154.02,28.31]
[1723231692471,45.25098,154.1,154.02,28.31]
[1723231692895,51.74028,154.1,154.02,28.31]
[1723231693083,45.25098,154.1,154.02,28.31]
[1723231693990,15.52369,154.09,154.0,37.91060578]
[1723231694310,80.17478,154.08,153.98,28.31]
[1723231694480,86.66498,154.08,154.0,9.60109389]
[1723231695904,0.12549,154.07,154.0,9.60109389]
[1723231696279,80.17478,154.08,154.0,9.60109389]
[1723231696577,51.86478,154.08,154.0,37.91109389]
[1723231697403,51.86478,154.08,154.0,28.31]
[1723231697577,51.86478,154.08,154.0,37.91774736]
[1723231697894,58.35498,154.08,154.0,37.91774736]
[1723231698787,58.35498,154.08,154.0,9.60774736]
[1723231700887,58.35498,154.08,153.98,28.31]
[1723231701101,51.86478,154.08,154.0,9.5957397]
[1723231703912,71.30478,154.08,154.0,29.0357397]
[1723231704114,51.86478,154.08,154.02,19.44]
[1723231704897,15.3982,154.09,154.04,19.44]
[1723231705107,15.3982,154.09,154.07,19.44]
[1723231705413,6.1279,154.12,154.07,19.44]
[1723231706927,6.1279,154.12,154.06,19.44]
[1723231707105,12.6164,154.12,154.06,19.44]
[1723231707794,6.4888,154.11,154.04,28.34]
[1723231708001,6.4893,154.1,154.03,9.59170242]
[1723231708203,6.4893,154.1,154.03,9.58848584]
[1723231708415,6.4893,154.1,154.02,37.92848584]
[1723231709205,6.4893,154.1,154.02,28.34]
[1723231709515,6.73988,154.11,154.02,28.34]
[1723231709692,6.61479,154.1,154.02,28.34]
[1723231710214,0.12549,154.1,154.02,28.34]
[1723231710397,0.12549,154.11,154.04,28.34]
[1723231710597,0.12549,154.11,154.05,1.29807221]
[1723231710901,0.12549,154.11,154.04,28.34]
[1723231711096,0.12549,154.11,154.05,1.29809218]
[1723231711497,0.12549,154.11,154.05,1.29809205]
[1723231711818,0.12549,154.11,154.04,28.34]
[1723231712512,12.6164,154.12,154.04,28.34]
[1723231712701,0.12549,154.11,154.03,9.58762605]
[1723231712894,0.12549,154.09,154.02,9.58762605]
[1723231713101,45.37647,154.09,154.01,9.58762605]
[1723231713301,6.4901,154.08,154.01,9.58762605]
[1723231714729,45.37647,154.09,153.99,9.58762605]
[1723231714730,6.1159,154.05,153.99,9.58762605]
[1723231715299,6.1159,154.05,154.0,9.6032921]
[1723231715511,16.5928,154.07,154.0,37.9432921]
[1723231715708,16.5928,154.07,154.0,28.34]
[1723231715912,16.5928,154.07,154.0,37.94083621]
[1723231716726,16.5928,154.07,154.0,9.60083621]
[1723231717102,0.37647,154.06,154.0,9.60083621]
[1723231718027,16.5928,154.07,154.0,37.94083621]
[1723231718333,23.0834,154.07,154.0,37.94083621]
[1723231718499,23.0834,154.07,154.0,9.60083621]
[1723231718711,23.0834,154.07,153.98,28.34]
[1723231718901,0.25098,154.06,154.0,9.59679667]
[1723231719121,6.74198,154.06,154.0,9.59679667]
[1723231719727,0.25098,154.06,154.0,9.59679667]
[1723231720116,16.5928,154.07,154.0,9.59679667]
[1723231720425,16.5928,154.07,154.0,37.93679667]
[1723231721342,16.5928,154.07,154.0,9.59679667]
[1723231721624,0.12549,154.06,154.0,9.59679667]
[1723231721828,0.37647,154.06,154.0,9.59679667]
[1723231722008,0.25098,154.06,154.0,9.59679667]
[1723231722206,0.12549,154.06,154.0,9.60020793]
[1723231724523,23.0834,154.07,154.0,9.60020793]
[1723231724524,16.5928,154.07,154.0,9.60020793]
[1723231725020,23.0834,154.07,154.0,9.60020793]
[1723231725222,16.5928,154.07,154.0,9.60020793]
[1723231725424,16.5928,154.07,154.02,28.34]
[1723231726129,16.5928,154.07,154.03,1.2983092]
[1723231726504,16.5928,154.07,154.02,28.34]
[1723231727727,16.5928,154.07,154.01,9.59793972]
[1723231728732,23.0833,154.07,154.01,9.59793972]
[1723231728905,16.5928,154.07,154.01,9.59793972]
[1723231729248,16.5928,154.07,154.0,28.34]
[1723231729407,16.5928,154.07,154.01,9.59815354]
[1723231730323,16.5928,154.07,154.0,37.93815354]
[1723231730503,23.0833,154.07,154.0,37.93815354]
[1723231731218,16.5928,154.07,154.01,9.59815354]
[1723231731610,16.5928,154.07,154.0,37.93815354]
[1723231732217,16.5928,154.07,154.01,9.59815354]
[1723231732509,23.0836,154.07,154.0,37.93815354]
[1723231732719,23.0836,154.07,154.0,37.93902216]
[1723231733324,23.0836,154.07,154.01,9.59902216]
[1723231733539,16.5928,154.07,154.01,9.59902216]
[1723231736243,16.5928,154.07,154.0,28.34]
[1723231736535,16.5928,154.07,154.01,9.59885456]
[1723231737712,16.5928,154.07,154.01,29.03885456]
[1723231738019,16.5928,154.07,154.02,19.44]
[1723231738837,16.5928,154.07,154.01,29.03852484]
[1723231739036,23.0836,154.07,154.01,29.03852484]
[1723231739243,0.37647,154.06,154.01,9.59852484]
[1723231739420,0.37647,154.06,154.0,19.44]
[1723231739421,0.37647,154.06,154.0,29.03852484]
[1723231739743,0.37647,154.06,154.01,9.59852484]
[1723231739952,0.37647,154.06,154.0,19.44]
[1723231740238,0.37647,154.06,154.01,9.60212857]
[1723231741743,0.37647,154.06,154.01,29.04212857]
[1723231742052,16.5928,154.07,154.02,19.44]
[1723231742241,16.5928,154.07,154.04,19.44]
[1723231743351,16.5928,154.07,154.05,19.44]
[1723231743648,16.1404,154.11,154.06,19.44]
[1723231743865,16.1404,154.11,154.07,19.44]
[1723231744445,16.1404,154.11,154.06,19.44]
[1723231744948,42.0693,154.11,154.05,19.44]
[1723231745836,42.0693,154.11,154.03,29.04157037]
[1723231745837,6.49,154.09,154.03,29.04157037]
[1723231746023,6.49,154.09,154.03,19.44]
[1723231746225,26.18028,154.1,154.03,19.44]
[1723231746447,19.56549,154.1,154.04,19.44]
[1723231746651,42.0693,154.11,154.04,19.44]
[1723231746944,6.74038,154.1,154.03,19.44]
[1723231747148,6.74038,154.1,154.04,19.44]
[1723231747438,0.25098,154.1,154.04,19.44]
[1723231747641,0.12549,154.1,154.04,19.44]
[1723231748219,0.12549,154.1,154.05,19.44]
[1723231748434,16.1404,154.11,154.05,19.44]
[1723231749012,42.0694,154.11,154.05,19.44]
[1723231749218,0.12549,154.1,154.04,19.44]
[1723231749417,26.18028,154.1,154.03,19.44]
[1723231749646,19.69098,154.1,154.03,19.44]
[1723231749937,6.61519,154.09,153.99,22.0475]
[1723231750145,0.25098,154.1,154.05,19.44]
[1723231750328,0.25098,154.1,154.04,19.44]
[1723231750329,6.74028,154.1,154.04,19.44]
[1723231750847,26.18028,154.1,154.03,19.44]
[1723231752234,19.44,154.08,154.01,19.44]
[1723231752420,25.9305,154.08,154.01,19.44]
[1723231752745,19.44,154.08,154.01,19.44]
[1723231752920,26.18068,154.09,154.02,19.44]
[1723231753119,0.25098,154.08,154.02,19.44]
[1723231753852,6.74108,154.08,154.02,19.44]
[1723231754140,6.4906,154.07,154.01,19.44]
[1723231754353,19.69098,154.08,154.01,19.44]
[1723231754840,6.4907,154.07,154.01,19.44]
[1723231755141,6.4911,154.06,154.0,18.94]
[1723231755342,6.4906,154.07,154.0,18.94]
[1723231755535,6.4906,154.07,154.01,19.44]
[1723231756617,26.18118,154.08,154.01,19.44]
[1723231756835,19.44,154.04,153.96,6.78676686]
[1723231757037,19.56549,154.05,153.98,19.44]
[1723231757348,22.49949,154.07,154.02,19.44]
[1723231757349,22.374,154.07,154.02,19.44]
[1723231757945,22.374,154.07,154.01,19.44]
[1723231758246,0.12549,154.06,154.0,19.44]
[1723231758432,0.12549,154.06,154.01,19.44]
[1723231758633,28.8648,154.07,154.01,19.44]
[1723231758831,22.374,154.07,154.01,19.44]
[1723231759044,22.374,154.07,154.02,19.44]
[1723231759247,22.374,154.07,154.01,19.44]
[1723231759422,22.374,154.07,154.02,19.44]
[1723231760431,22.374,154.07,154.04,19.44]
[1723231760432,16.1336,154.07,154.04,19.44]
[1723231760647,16.1336,154.07,154.05,19.44]
[1723231760849,16.1336,154.07,154.0,19.44]
[1723231760850,6.4893,154.1,154.04,19.44]
[1723231761929,21.9734,154.11,154.01,25.74726957]
[1723231762136,28.4624,154.11,154.05,19.44]
[1723231762343,6.4894,154.1,154.05,19.44]
[1723231762546,6.4894,154.1,154.03,9.60056957]
[1723231762547,6.4894,154.1,154.04,19.44]
[1723231762747,6.4894,154.1,154.04,29.04056957]
[1723231762965,6.4894,154.1,154.04,19.44]
[1723231763126,6.4894,154.1,154.04,29.03465452]
[1723231763529,47.9023,154.11,154.05,19.44]
[1723231764360,28.4623,154.11,154.05,19.44]
[1723231764860,47.9023,154.11,154.05,19.44]
[1723231765863,35.9859065,154.15,154.1,19.44]
[1723231766158,35.9859065,154.15,154.01,25.50282384]
[1723231766159,22.7118,154.15,154.11,19.44]
[1723231766331,29.1991,154.15,154.1,19.44]
[1723231766530,6.4876,154.14,154.1,19.44]
[1723231766763,19.44,154.14,154.08,19.44]
[1723231766938,19.44,154.13,154.06,29.03462871]
[1723231767140,19.44,154.12,154.05,19.44]
[1723231767335,64.56549,154.11,154.04,19.44]
[1723231767540,6.4897,154.09,154.04,19.44]
[1723231767758,6.4894,154.1,154.04,19.44]
[1723231768956,26.05439,154.11,154.04,19.44]
[1723231769153,6.4889,154.11,154.05,19.44]
[1723231769965,6.74028,154.1,154.04,19.44]
[1723231770162,6.4888,154.11,154.05,19.44]
[1723231770336,6.4894,154.1,154.05,19.44]
[1723231770535,6.4894,154.1,154.04,19.44]
[1723231770744,0.12549,154.09,154.02,29.03462871]
[1723231771151,6.4904,154.08,154.02,19.44]
[1723231771549,6.61519,154.09,154.02,19.44]
[1723231772737,6.4902,154.08,154.02,19.44]
[1723231773145,26.18068,154.09,154.02,19.44]
[1723231774967,26.18068,154.09,154.01,29.02777969]
[1723231775268,51.4901,154.08,154.01,29.02777969]
[1723231775459,0.12549,154.07,154.01,29.02777969]
[1723231776762,0.12549,154.07,154.02,19.44]
[1723231777655,25.931,154.06,154.01,9.59014765]
[1723231777856,25.931,154.06,153.99,9.59014765]
[1723231778059,6.491,154.06,153.99,29.03014765]
[1723231778277,19.69098,154.07,154.0,29.03014765]
[1723231778591,0.12549,154.07,154.01,19.44]
[1723231779067,0.12549,154.07,154.02,19.44]
[1723231779770,0.12549,154.07,154.01,19.44]
[1723231781468,0.25098,154.07,154.01,19.44]
[1723231781672,6.4914,154.05,153.99,29.03496622]
[1723231781969,6.4918,154.04,153.99,19.44]
[1723231782166,6.4914,154.05,153.99,19.44]
[1723231784569,19.44,154.05,153.98,29.0377204]
[1723231784898,6.4933,154.01,153.95,9.5977204]
[1723231785389,25.9333,154.01,153.95,9.5977204]
[1723231785780,19.56549,154.02,153.94,29.0377204]
[1723231786099,19.56549,154.02,153.95,19.44]
[1723231786499,26.05819,154.02,153.95,19.44]
[1723231788795,19.56549,154.02,153.95,19.44]
[1723231789098,19.44,154.0,153.93,9.5977204]
[1723231789268,25.9338,154.0,153.92,29.0377204]
[1723231789993,25.9338,154.0,153.93,19.44]
[1723231790181,19.44,154.0,153.93,19.44]
[1723231790569,26.18408,154.01,153.94,19.44]
[1723231790880,19.56549,154.0,153.93,19.44]
[1723231792374,25.9339,153.99,153.92,19.44]
[1723231793368,25.9339,153.99,153.89,16.4582]
[1723231793369,25.9343,153.98,153.91,19.44]
[1723231793570,0.25098,153.97,153.91,19.44]
[1723231793790,34.5982,153.98,153.91,19.44]
[1723231794367,0.25098,153.97,153.91,19.44]
[1723231795379,0.12549,153.97,153.91,19.44]
[1723231795782,0.25098,153.97,153.91,19.44]
[1723231795994,32.33588,153.97,153.9,19.44]
[1723231800073,6.62099,153.96,153.87,9.61877371]
[1723231800275,0.12549,153.95,153.89,19.44]
[1723231800470,6.62109,153.95,153.89,19.44]
[1723231800687,0.12549,153.94,153.88,19.44]
[1723231800889,0.12549,153.91,153.84,9.61877371]
[1723231801109,6.74828,153.91,153.85,19.44]
[1723231801302,32.46359,153.91,153.84,19.44]
[1723231801471,32.46369,153.91,153.84,19.44]
[1723231801675,6.4008,153.91,153.87,19.44]
[1723231801871,6.4008,153.91,153.86,19.44]